[Event "-chT Youth Countries 2019"]
[Site "Wuerzburg"]
[Date "2019.10.05"]
[Round "6.6"]
[White "Brunner, Sophia"]
[Black "Schwartz, Oliver"]
[Result "1/2-1/2"]
[ECO "A47"]
[WhiteElo "1935"]
[BlackElo "1650"]
[Annotator "NA RC"]
[PlyCount "156"]
[EventDate "2019.10.02"]
[EventType "team-tourn"]
[EventRounds "7"]
[EventCountry "GER"]
[SourceTitle "playchess.com"]
[Source "ChessBase"]
[SourceQuality "1"]
[WhiteTeam "Niedersachsen"]
[BlackTeam "Württemberg"]
[TimeControl "40/5400+30:1800+30"]

1. d4 {[%emt 0:00:00]} Nf6 {[%emt 0:00:00]} 2. Nf3 {[%emt 0:00:00]} b6 {[%emt 0:00:00]} 3. c4 {[%emt 0:01:33] unterminated} Bb7 {[%emt 0:02:34]} 4. Nc3 {[%emt 0:00:28]} e6 {[%emt 0:00:29] unterminated} 5. Bg5 {[%emt 0:09:05] unterminated} d5 {[%emt 0:04:08]} 6. e3 {[%emt 0:00:23] unterminated} Be7 {[%emt 0:06:46] unterminated} 7. Bd3 {[%emt 0:03:15] unterminated} c5 {[%emt 0:05:32] unterminated} 8. dxc5 {[%emt 0:05:34]} bxc5 {[%emt 0:03:01]} 9. cxd5 {[%emt 0:04:55]} Nxd5 {[%emt 0:05:59]} 10. Bxe7 Qxe7 {[%emt 0:01:17]} 11. Bb5+ {[%emt 0:04:25]} Nd7 {[%emt 0:00:23]} 12. Ne5 {[%emt 0:04:39]} N5b6 {[%emt 0:01:20]} 13. Bxd7+ {[%emt 0:10:43]} Nxd7 {[%emt 0:00:09]} 14. Qxd7+ {[%emt 0:00:09]} Qxd7 {[%emt 0:00:09]} 15. Nxd7 {[%emt 0:00:08]} Kxd7 {[%emt 0:00:04]} 16. O-O-O+ {[%emt 0:01:12]} Ke7 {[%emt 0:02:44]} 17. f3 {[%emt 0:00:06]} Bc6 {[%emt 0:15:15]} 18. Rd2 {[%emt 0:00:29]} Rhc8 {[%emt 0:01:45]} 19. Rhd1 {[%emt 0:00:26]} Rab8 {[%emt 0:04:09]} 20. e4 {[%emt 0:06:18]} Rb4 {[%emt 0:03:06]} 21. Rd6 {[%emt 0:03:02]} h6 {[%emt 0:07:28]} 22. a3 {[%emt 0:06:51]} Rb7 {[%emt 0:01:58]} 23. R1d2 {[%emt 0:04:14]} Rb6 {[%emt 0:07:58]} 24. e5 {[%emt 0:04:23]} Rb3 {[%emt 0:02:01]} 25. Kc2 {[%emt 0:00:44]} Rb6 {[%emt 0:00:53] unterminated} 26. Kc1 {[%emt 0:08:37]} Rb3 {[%emt 0:01:04]} 27. Ne2 {[%emt 0:00:29] unterminated} Re3 {[%emt 0:02:10]} 28. f4 {[%emt 0:01:29] [#] unterminated} Rc7 {[%emt 0:03:50] unterminated} ({Black should try} 28... g5 $1 $17 29. g3 gxf4 30. gxf4 Rf3) 29. g3 {[%emt 0:02:48] unterminated} Bd5 {[%emt 0:02:54]} 30. Nc3 {[%emt 0:01:38]} Bb3 {[%emt 0:00:56]} 31. Re2 {[%emt 0:01:35]} Rf3 {[%emt 0:00:51]} 32. Re1 {[%emt 0:01:58] unterminated} Rf2 {[%emt 0:02:02]} 33. Rd2 {[%emt 0:00:14]} Rf3 {[%emt 0:01:16] unterminated} 34. Nb5 {[%emt 0:04:02] unterminated} Rb7 {[%emt 0:02:36]} 35. Nd6 {[%emt 0:00:14] unterminated} Rc7 {[%emt 0:00:18]} 36. Nb5 {[%emt 0:03:05] unterminated} Rb7 {[%emt 0:00:22] unterminated} 37. Nd6 {[%emt 0:01:53] unterminated} Rc7 {[%emt 0:01:16]} 38. Ne4 {[%emt 0:01:23] unterminated} Bd5 {[%emt 0:01:54]} 39. Nc3 {[%emt 0:01:15]} Bb3 {[%emt 0:00:51]} 40. Rde2 {[%emt 0:02:50]} Rd3 {[%emt 0:02:48]} 41. Rd2 {[%emt 0:31:17]} Rf3 {[%emt 0:31:38]} 42. Nd1 {[%emt 0:00:00]} c4 {[%emt 0:00:00]} 43. Nc3 {[%emt 0:00:00]} Rc8 {[%emt 0:00:00]} 44. Nb5 {[%emt 0:00:00]} Rc5 {[%emt 0:00:00]} 45. Nd4 {[%emt 0:00:00]} c3 {[%emt 0:00:00]} 46. Nxf3 {[%emt 0:00:00]} cxd2+ {[%emt 0:00:00]} 47. Kxd2 {[%emt 0:00:00]} Rc2+ {[%emt 0:00:00]} 48. Kd3 {[%emt 0:00:00]} Rxb2 {[%emt 0:00:00]} 49. Kc3 {[%emt 0:00:00]} Rf2 {[%emt 0:00:00]} 50. Kxb3 {[%emt 0:00:00]} Rxf3+ {[%emt 0:00:00]} 51. Kb4 {[%emt 0:00:00]} Rf2 {[%emt 0:00:00]} 52. Kb5 {[%emt 0:00:00]} Rxh2 {[%emt 0:00:00]} 53. Ka6 {[%emt 0:00:00]} Ra2 {[%emt 0:00:00]} 54. Re3 {[%emt 0:00:00] unterminated} Kd7 {[%emt 0:00:26]} 55. Rc3 {[%emt 0:00:00]} g5 {[%emt 0:01:17] unterminated} 56. fxg5 {[%emt 0:00:00]} hxg5 {[%emt 0:00:05]} 57. Kxa7 {[%emt 0:00:00]} Re2 {[%emt 0:01:12]} 58. Kb6 {[%emt 0:00:00]} Rxe5 {[%emt 0:00:13]} 59. a4 {[%emt 0:00:15]} Re1 {[%emt 0:00:45]} 60. Rd3+ {[%emt 0:01:02]} Ke7 {[%emt 0:00:28]} 61. a5 {[%emt 0:00:12]} Rb1+ {[%emt 0:00:12]} 62. Kc6 {[%emt 0:00:29]} Ra1 {[%emt 0:00:38]} 63. Kb6 {[%emt 0:00:09]} Rb1+ {[%emt 0:00:47]} 64. Kc6 {[%emt 0:00:11] unterminated} Ra1 {[%emt 0:01:54]} 65. Kb6 {[%emt 0:00:05]} f5 $11 {[%emt 0:00:03]} 66. a6 {[%emt 0:03:33]} f4 {[%emt 0:00:00]} 67. gxf4 {[%emt 0:00:08]} gxf4 {[%emt 0:00:00]} 68. Kb7 {[%emt 0:01:12]} Rb1+ {[%emt 0:00:00]} 69. Kc6 {[%emt 0:00:13]} Ra1 {[%emt 0:00:07]} 70. Kb7 {[%emt 0:00:19]} Kf6 {[%emt 0:03:29]} 71. a7 {[%emt 0:01:40]} Kf5 {[%emt 0:03:16]} 72. Rd6 {[%emt 0:01:13]} Rxa7+ {[%emt 0:02:11]} 73. Kxa7 {[%emt 0:00:05]} f3 {[%emt 0:00:04]} 74. Kb6 {[%emt 0:00:35]} e5 {[%emt 0:00:58]} 75. Kc5 {[%emt 0:00:50]} f2 {[%emt 0:00:16]} 76. Rd8 {[%emt 0:00:32]} Ke4 {[%emt 0:00:14]} 77. Rf8 {[%emt 0:00:18]} Ke3 {[%emt 0:00:06]} 78. Kd5 {[%emt 0:00:05]} Ke2 {[%emt 0:00:16] normal Kd4} 1/2-1/2

[Event "-chT Youth Countries 2019"]
[Site "Wuerzburg"]
[Date "2019.10.05"]
[Round "6.6"]
[White "Browning, Rebecca"]
[Black "Metzdorf, Matteo"]
[Result "0-1"]
[ECO "B22"]
[WhiteElo "1932"]
[BlackElo "1862"]
[Annotator "NA RC"]
[PlyCount "178"]
[EventDate "2019.10.02"]
[EventType "team-tourn"]
[EventRounds "7"]
[EventCountry "GER"]
[SourceTitle "playchess.com"]
[Source "ChessBase"]
[SourceQuality "1"]
[WhiteTeam "Nordrhein-Westfalen"]
[BlackTeam "Rheinland-Pfalz"]
[TimeControl "40/5400+30:1800+30"]

1. e4 {[%emt 0:00:00]} c5 {[%emt 0:00:00]} 2. c3 {[%emt 0:00:00]} e6 {[%emt 0:00:00]} 3. Nf3 {[%emt 0:00:03]} d5 {[%emt 0:00:30]} 4. e5 {[%emt 0:00:40]} Nc6 {[%emt 0:02:01]} 5. a3 {[%emt 0:00:43] unterminated} Qb6 {[%emt 0:03:45] unterminated} (5... f6 $11) 6. d4 {[%emt 0:03:34]} c4 {[%emt 0:00:20] unterminated} 7. Qc2 {[%emt 0:08:33]} Na5 {[%emt 0:03:54] unterminated} 8. Be3 {[%emt 0:02:04]} Nb3 {[%emt 0:03:22]} 9. Ra2 {[%emt 0:00:06] unterminated} Bd7 {[%emt 0:00:21]} 10. Nbd2 {[%emt 0:00:12] unterminated} Ne7 {[%emt 0:07:22] [#] unterminated} (10... Ba4 $11) 11. Qb1 {[%emt 0:03:18] unterminated} (11. Bxc4 $1 $14 {[%mdl 512]} Nxd2 (11... dxc4 12. Nxc4) 12. Nxd2) 11... Nf5 {[%emt 0:08:54]} 12. Bf4 {[%emt 0:02:08] unterminated} Be7 {[%emt 0:05:58] unterminated} 13. Be2 {[%emt 0:07:46] unterminated} Ba4 {[%emt 0:05:19]} 14. O-O {[%emt 0:01:35]} O-O {[%emt 0:02:02] unterminated} 15. Nxb3 {[%emt 0:04:44] unterminated} Bxb3 {[%emt 0:00:51]} 16. Ra1 {[%emt 0:00:05] unterminated} f6 {[%emt 0:12:07] unterminated} 17. Re1 {[%emt 0:06:07] unterminated} fxe5 {[%emt 0:07:50]} 18. Bxe5 {[%emt 0:01:30]} Bf6 {[%emt 0:01:05] unterminated} 19. Qc1 {[%emt 0:00:38] unterminated} Nd6 {[%emt 0:03:32] unterminated} 20. Bxf6 {[%emt 0:13:18] unterminated} gxf6 {[%emt 0:06:09] unterminated} 21. Nd2 {[%emt 0:02:40] unterminated} Rae8 {[%emt 0:06:56] unterminated} 22. Nxb3 {[%emt 0:05:29]} Qxb3 {[%emt 0:00:16]} 23. Bd1 {[%emt 0:00:04] unterminated} Qb6 {[%emt 0:02:05]} 24. Bc2 {[%emt 0:00:11]} Rf7 {[%emt 0:03:04] unterminated} 25. Rb1 {[%emt 0:07:11] unterminated} e5 {[%emt 0:07:32] unterminated} 26. Qd2 {[%emt 0:06:39] unterminated} e4 {[%emt 0:03:16]} 27. Qf4 {[%emt 0:01:49]} f5 {[%emt 0:00:26]} 28. Bd1 {[%emt 0:01:21]} Rg7 {[%emt 0:01:09]} 29. Ba4 {[%emt 0:02:13]} Re6 {[%emt 0:00:28]} 30. h4 {[%emt 0:01:12]} Rg4 {[%emt 0:00:37] unterminated} 31. Qh2 {[%emt 0:05:45]} Reg6 {[%emt 0:00:09] unterminated} 32. b3 {[%emt 0:05:37]} (32. Kh1 $142 Qd8 33. h5 Rxg2 34. Qh3) 32... Qa5 {[%emt 0:01:00] unterminated} 33. Bd7 {[%emt 0:01:02]} Qd8 {[%emt 0:01:40]} 34. Ba4 {[%emt 0:02:22]} b5 {[%emt 0:00:20]} 35. bxc4 {[%emt 0:00:11]} bxa4 {[%emt 0:00:06]} 36. c5 {[%emt 0:00:04]} Nc4 {[%emt 0:02:55]} 37. Rb8 {[%emt 0:00:32]} Rxg2+ {[%emt 0:00:03]} 38. Kf1 {[%emt 0:00:05]} Rxh2 {[%emt 0:00:16]} 39. Rxd8+ {[%emt 0:00:04]} Kf7 {[%emt 0:00:51]} 40. Rxd5 {[%emt 0:00:29]} Ke6 {[%emt 0:00:53]} 41. Rd8 {[%emt 0:32:52]} e3 {[%emt 0:04:52] unterminated} 42. Ke2 {[%emt 0:00:00]} Rxf2+ {[%emt 0:02:48] unterminated} 43. Kd3 {[%emt 0:00:00] unterminated} Ke7 {[%emt 0:17:46] unterminated} 44. Rd5 {[%emt 0:00:00] unterminated} Nd2 {[%emt 0:05:11]} ({Don't take} 44... Nxa3 45. Rxe3+ Re6 46. c6 $19) 45. Rxe3+ {[%emt 0:00:00]} Ne4 {[%emt 0:00:10] unterminated} 46. Kc4 {[%emt 0:00:00]} Re6 {[%emt 0:00:46] unterminated} 47. Kd3 {[%emt 0:00:00]} Rd2+ {[%emt 0:00:39]} 48. Kc4 {[%emt 0:00:00]} f4 {[%emt 0:00:37]} 49. Rf3 {[%emt 0:00:00]} Rc2 {[%emt 0:00:44]} 50. Rxf4 {[%emt 0:00:26]} Rxc3+ {[%emt 0:01:05]} 51. Kb4 {[%emt 0:01:07]} Rb3+ {[%emt 0:00:25]} 52. Kxa4 {[%emt 0:00:56]} Rb1 53. Rxe4 {[%emt 0:00:46]} Rxe4 {[%emt 0:00:54] unterminated} 54. c6 {[%emt 0:00:35]} Rb8 {[%emt 0:00:58]} 55. Ka5 {[%emt 0:00:30]} Rc8 {[%emt 0:00:31]} 56. Kb5 {[%emt 0:00:12]} Rb8+ {[%emt 0:00:33]} 57. Kc5 {[%emt 0:00:54]} Ke6 {[%emt 0:00:34]} 58. Rd6+ {[%emt 0:00:17] unterminated} Ke7 {[%emt 0:00:13]} 59. Rd7+ {[%emt 0:00:10] Double Attack} Ke8 {[%emt 0:00:46]} 60. Rxh7 {[%emt 0:00:57]} Rb1 {[%emt 0:00:32]} 61. c7 {[%emt 0:02:01]} Rc1+ {[%emt 0:00:18] unterminated} 62. Kd6 $19 {[%emt 0:04:39]} Rxd4+ {[%emt 0:00:11]} 63. Ke5 {[%emt 0:00:55]} Rdc4 {[%emt 0:00:29]} 64. c8=Q+ {[%emt 0:01:01]} Rxc8 {[%emt 0:00:02]} 65. Rxa7 {[%emt 0:00:03]} R1c7 {[%emt 0:00:22]} 66. Ra6 {[%emt 0:00:13]} Ke7 {[%emt 0:00:39]} 67. Kf4 {[%emt 0:00:54]} Rc4+ {[%emt 0:00:22]} 68. Kg3 {[%emt 0:00:14]} Rc3+ {[%emt 0:00:24]} 69. Kg4 {[%emt 0:00:27]} Rg8+ {[%emt 0:00:12]} 70. Kf5 {[%emt 0:00:29]} Rc5+ {[%emt 0:00:08]} 71. Kf4 {[%emt 0:00:08]} Rc4+ {[%emt 0:00:11]} 72. Kf5 {[%emt 0:00:07]} Rxh4 {[%emt 0:00:26]} 73. Ra7+ {[%emt 0:00:07]} Kd6 {[%emt 0:00:25]} 74. a4 {[%emt 0:00:14]} Rf8+ {[%emt 0:00:44]} 75. Kg5 {[%emt 0:00:07]} Rc4 {[%emt 0:00:28]} 76. Ra6+ {[%emt 0:00:16]} Rc6 {[%emt 0:00:38]} 77. Ra7 {[%emt 0:00:06]} Rc7 {[%emt 0:00:53]} 78. Ra6+ {[%emt 0:00:19]} Kc5 {[%emt 0:00:23]} 79. Re6 {[%emt 0:01:12]} Rg7+ {[%emt 0:01:30]} 80. Kh6 {[%emt 0:00:05] unterminated} Rg1 {[%emt 0:00:18]} 81. Kh7 {[%emt 0:00:16]} Rf4 {[%emt 0:00:24]} 82. Re5+ {[%emt 0:00:16]} Kb4 {[%emt 0:00:14]} 83. Rh5 {[%emt 0:00:10]} Kxa4 {[%emt 0:00:19]} 84. Kh8 {[%emt 0:00:17]} Kb4 {[%emt 0:00:12]} 85. Rh6 {[%emt 0:00:20]} Kc5 {[%emt 0:00:23]} 86. Rh5+ {[%emt 0:00:17]} Kd6 {[%emt 0:00:17]} 87. Rh6+ {[%emt 0:00:12]} Ke7 {[%emt 0:00:42]} 88. Rh7+ {[%emt 0:00:11]} Kf8 {[%emt 0:01:30]} 89. Rf7+ {[%emt 0:00:24]} Kxf7 {[%emt 0:00:12] normal} 0-1

[Event "-chT Youth Countries 2019"]
[Site "Wuerzburg"]
[Date "2019.10.05"]
[Round "6.6"]
[White "Peglau, Charis"]
[Black "Wang, Xinyuan"]
[Result "1-0"]
[ECO "B28"]
[WhiteElo "1827"]
[BlackElo "2020"]
[Annotator "NA"]
[PlyCount "137"]
[EventDate "2019.10.02"]
[EventType "team-tourn"]
[EventRounds "7"]
[EventCountry "GER"]
[SourceTitle "playchess.com"]
[Source "ChessBase"]
[SourceQuality "1"]
[WhiteTeam "Sachsen"]
[BlackTeam "Baden 1"]
[TimeControl "40/5400+30:1800+30"]

1. e4 {[%emt 0:00:00]} c5 {[%emt 0:00:00]} 2. Nf3 {[%emt 0:00:00]} a6 {[%emt 0:00:00]} 3. c3 {[%emt 0:00:00]} e6 {[%emt 0:00:00]} 4. d4 {[%emt 0:00:24]} d5 {[%emt 0:00:00]} 5. e5 {[%emt 0:00:21]} Bd7 {[%emt 0:00:14]} 6. Bd3 {[%emt 0:00:30]} Nc6 {[%emt 0:00:24] B28: Sicilian: 2 Nf3 a6 (O'Kelly Variation)} (6... cxd4 7. cxd4 Bb5 8. Bc2 Bb4+ 9. Bd2 a5 10. a3 Bxd2+ 11. Qxd2 Ne7 12. Nc3 Ba6 13. h4 h6 14. Rh3 {1-0 (46) Eliseev,U (2582)-Artemiev,V (2673) Moscow 2016}) 7. a3 {[%emt 0:00:21]} Be7 {[%emt 0:00:36]} 8. O-O $146 {[%emt 0:00:32] unterminated} ({Predecessor:} 8. h4 h6 9. h5 Na7 10. Rh3 Bb5 11. Bc2 Rc8 {0-1 (22) Wittal,W-Pluemmer,R DESC email 2004}) 8... g5 {[%emt 0:02:03] unterminated} 9. Bc2 {[%emt 0:08:06] unterminated} Rc8 {[%emt 0:07:56]} 10. Be3 {[%emt 0:02:37] unterminated} h5 {[%emt 0:05:49]} 11. Ne1 {[%emt 0:02:12] unterminated} cxd4 {[%emt 0:18:59]} 12. cxd4 {[%emt 0:01:24] unterminated} Na5 {[%emt 0:04:19]} 13. Nc3 {[%emt 0:00:56] unterminated} Nc4 {[%emt 0:03:16] unterminated} 14. Nd3 {[%emt 0:03:29] unterminated} Nxb2 {[%emt 0:04:16] unterminated} 15. Nxb2 {[%emt 0:06:25]} Rxc3 {[%emt 0:01:36] unterminated} 16. Qd2 {[%emt 0:03:34] unterminated} Qc8 {[%emt 0:10:19] unterminated} 17. Ba4 {[%emt 0:08:17] unterminated} b5 {[%emt 0:06:23]} 18. Bd1 {[%emt 0:00:23] unterminated} g4 {[%emt 0:07:21] unterminated} 19. f3 {[%emt 0:11:06] unterminated} Bxa3 {[%emt 0:02:47]} 20. Nd3 {[%emt 0:01:56]} b4 {[%emt 0:05:36]} 21. Nc5 {[%emt 0:01:26]} Bb5 {[%emt 0:01:31]} 22. Be2 {[%emt 0:01:06]} Qc6 {[%emt 0:01:58]} 23. Bxb5 {[%emt 0:01:00]} Qxb5 {[%emt 0:00:37]} 24. fxg4 {[%emt 0:00:28]} hxg4 {[%emt 0:02:27]} 25. Qf2 {[%emt 0:01:17]} Rh7 {[%emt 0:00:14]} 26. Nxe6 {[%emt 0:01:11]} fxe6 {[%emt 0:02:57]} 27. Qf8+ {[%emt 0:00:50]} Kd7 {[%emt 0:00:04]} 28. Qxg8 {[%emt 0:00:49]} Re7 {[%emt 0:01:00]} 29. Bg5 {[%emt 0:00:59] unterminated} Re8 {[%emt 0:00:59]} 30. Qf7+ {[%emt 0:02:17]} Kc8 {[%emt 0:00:11] unterminated} 31. Qa7 {[%emt 0:06:48] unterminated} Qb7 {[%emt 0:03:13]} 32. Rf7 {[%emt 0:01:58]} Qxa7 {[%emt 0:02:52]} 33. Rxa7 {[%emt 0:00:07]} Rc6 {[%emt 0:00:10]} 34. Ra8+ {[%emt 0:01:19]} Kd7 {[%emt 0:00:44]} 35. Ra7+ {[%emt 0:00:08]} Kc8 {[%emt 0:00:08]} 36. Ra8+ {[%emt 0:00:06]} Kd7 {[%emt 0:00:05]} 37. Ra7+ {[%emt 0:00:05]} Rc7 {[%emt 0:06:47]} 38. Rxa6 {[%emt 0:00:06]} Rb7 {[%emt 0:00:23]} 39. Rb1 {[%emt 0:01:04]} Kc7 {[%emt 0:00:24] unterminated} 40. Bd2 {[%emt 0:02:53]} ({Better is} 40. Kf2 $16) 40... Kb8 $14 {[%emt 0:00:50]} 41. Kf2 {[%emt 0:32:21]} Ra7 {[%emt 0:01:25]} 42. Rxa7 {[%emt 0:00:00]} Kxa7 {[%emt 0:00:09]} 43. Bxb4 {[%emt 0:00:00]} Rb8 {[%emt 0:00:53]} 44. Ra1 {[%emt 0:00:00]} Rxb4 {[%emt 0:00:11]} 45. Rxa3+ {[%emt 0:00:00]} Kb6 {[%emt 0:00:07]} 46. Rd3 {[%emt 0:00:00]} Rb2+ {[%emt 0:00:48]} 47. Kg3 {[%emt 0:00:00]} Kb5 {[%emt 0:00:05]} 48. h4 {[%emt 0:00:00]} gxh3 {[%emt 0:00:23]} 49. gxh3 {[%emt 0:00:00]} Kc4 {[%emt 0:01:37]} 50. Rd1 {[%emt 0:00:00]} Rb3+ {[%emt 0:00:57]} 51. Kg4 {[%emt 0:00:00]} Rd3 {[%emt 0:00:25]} 52. Rxd3 {[%emt 0:00:00]} Kxd3 {[%emt 0:00:06]} 53. h4 {[%emt 0:00:00]} Kxd4 {[%emt 0:00:04]} 54. Kf4 {[%emt 0:00:00]} Kc3 {[%emt 0:00:11]} 55. h5 {[%emt 0:00:00]} d4 {[%emt 0:00:15]} 56. h6 {[%emt 0:00:00]} d3 {[%emt 0:00:04]} 57. h7 {[%emt 0:00:00]} d2 {[%emt 0:00:15]} 58. h8=Q {[%emt 0:00:00]} d1=Q {[%emt 0:00:12]} 59. Qc8+ {[%emt 0:00:00]} Kb2 {[%emt 0:01:10]} 60. Qxe6 {[%emt 0:00:00]} Qf1+ {[%emt 0:00:43]} 61. Kg5 {[%emt 0:00:00]} Qc1+ {[%emt 0:04:00]} 62. Kf6 {[%emt 0:00:00]} Qh6+ {[%emt 0:00:53]} 63. Ke7 {[%emt 0:00:00]} Qh7+ {[%emt 0:00:17]} 64. Kd6 {[%emt 0:00:00]} Qd3+ {[%emt 0:00:23]} 65. Qd5 {[%emt 0:00:00]} Qa6+ {[%emt 0:00:19]} 66. Qc6 {[%emt 0:00:00]} Qd3+ {[%emt 0:00:34]} 67. Kc7 {[%emt 0:00:00]} Qh7+ {[%emt 0:00:09]} 68. Kb6 {[%emt 0:00:00]} Qd3 {[%emt 0:01:25]} 69. Qb5+ {[%emt 0:00:00] normal Qh7 Qc6} 1-0

[Event "-chT Youth Countries 2019"]
[Site "Wuerzburg"]
[Date "2019.10.05"]
[Round "6.6"]
[White "Grining, Maria"]
[Black "Hubert, Charlotte"]
[Result "1/2-1/2"]
[ECO "D37"]
[WhiteElo "1801"]
[BlackElo "1341"]
[Annotator "NA"]
[PlyCount "85"]
[EventDate "2019.10.02"]
[EventType "team-tourn"]
[EventRounds "7"]
[EventCountry "GER"]
[SourceTitle "playchess.com"]
[Source "ChessBase"]
[SourceQuality "1"]
[WhiteTeam "Baden 2"]
[BlackTeam "Hamburg/Schleswig-Holstein"]
[TimeControl "40/5400+30:1800+30"]

1. d4 {[%emt 0:00:00]} d5 {[%emt 0:00:00]} 2. Nf3 {[%emt 0:00:00]} Nf6 {[%emt 0:00:00]} 3. c4 {[%emt 0:00:00]} e6 {[%emt 0:00:03]} 4. Nc3 {[%emt 0:00:00]} Be7 {[%emt 0:00:23]} 5. e3 {[%emt 0:00:15]} O-O {[%emt 0:00:56]} 6. b3 {[%emt 0:00:42]} b6 {[%emt 0:01:40]} 7. Bd3 {[%emt 0:00:25]} Bb7 {[%emt 0:01:41]} 8. O-O {[%emt 0:00:22]} Nbd7 {[%emt 0:01:24]} 9. Bb2 {[%emt 0:00:23]} c5 {[%emt 0:02:23]} 10. Re1 {[%emt 0:05:30]} Rc8 {[%emt 0:02:26]} 11. cxd5 {[%emt 0:04:59]} exd5 {[%emt 0:02:06]} 12. e4 {[%emt 0:06:25]} dxe4 {[%emt 0:11:03]} 13. Nxe4 {[%emt 0:00:46]} Nxe4 {[%emt 0:02:10]} 14. Bxe4 {[%emt 0:00:10]} Bxe4 15. Rxe4 {[%emt 0:00:08]} Nf6 {[%emt 0:03:48]} 16. Re2 {[%emt 0:00:58]} cxd4 17. Nxd4 {[%emt 0:02:24]} Bc5 {[%emt 0:08:33]} 18. Nf5 {[%emt 0:21:27]} Qxd1+ {[%emt 0:02:53]} 19. Rxd1 {[%emt 0:00:05]} Rcd8 {[%emt 0:00:43]} 20. Rde1 {[%emt 0:07:33]} Bb4 {[%emt 0:06:14]} 21. Bxf6 {[%emt 0:06:02]} gxf6 {[%emt 0:00:33]} 22. Rc1 {[%emt 0:02:29]} Rfe8 {[%emt 0:01:42]} 23. Rxe8+ {[%emt 0:09:00]} Rxe8 {[%emt 0:00:23]} 24. Ne3 {[%emt 0:01:03]} Bc5 {[%emt 0:07:04]} 25. Re1 {[%emt 0:06:22]} Bxe3 {[%emt 0:00:30]} 26. fxe3 {[%emt 0:02:12]} Rc8 {[%emt 0:01:46]} 27. Kf2 {[%emt 0:03:28]} Kf8 {[%emt 0:01:40]} 28. Re2 {[%emt 0:00:33]} Ke7 {[%emt 0:00:36] unterminated} 29. Kf3 {[%emt 0:01:36] unterminated} Ke6 {[%emt 0:01:14]} 30. Kf4 {[%emt 0:02:33] unterminated} Rc5 {[%emt 0:07:40]} 31. e4 {[%emt 0:02:10] unterminated} Kd6 {[%emt 0:15:28] unterminated} 32. Rd2+ {[%emt 0:00:49]} Ke6 {[%emt 0:01:07]} 33. Re2 {[%emt 0:02:04] unterminated} a5 {[%emt 0:03:22]} 34. h3 {[%emt 0:03:29] unterminated} b5 {[%emt 0:01:07]} 35. a3 {[%emt 0:02:57] unterminated} Rc3 {[%emt 0:02:40]} 36. Re3 {[%emt 0:00:24]} Rc2 {[%emt 0:01:23] unterminated} 37. g4 {[%emt 0:03:59]} Ra2 {[%emt 0:00:50] unterminated} 38. b4 $1 {[%emt 0:01:25]} axb4 {[%emt 0:00:09]} 39. axb4 $11 {[%emt 0:00:02]} Rb2 {[%emt 0:00:10]} 40. Rc3 {[%emt 0:00:49]} Rxb4 {[%emt 0:00:43]} 41. Rc6+ {[%emt 0:31:00]} Ke7 {[%emt 0:31:08] normal} 42. Rc7+ {[%emt 0:01:36]} Ke6 {[%emt 0:02:56]} 43. Rc6+ {[%emt 0:00:28] normal Ke5+} 1/2-1/2

[Event "-chT Youth Countries 2019"]
[Site "Wuerzburg"]
[Date "2019.10.05"]
[Round "6.6"]
[White "Pavlov, Liliane"]
[Black "Reuter, Elisa"]
[Result "1/2-1/2"]
[ECO "D76"]
[WhiteElo "1632"]
[BlackElo "1873"]
[Annotator "NA"]
[PlyCount "67"]
[EventDate "2019.10.02"]
[EventType "team-tourn"]
[EventRounds "7"]
[EventCountry "GER"]
[SourceTitle "playchess.com"]
[Source "ChessBase"]
[SourceQuality "1"]
[WhiteTeam "Team Süd"]
[BlackTeam "Thüringen"]
[TimeControl "40/5400+30:1800+30"]

1. d4 {[%emt 0:00:00]} Nf6 {[%emt 0:00:00]} 2. c4 {[%emt 0:00:00]} g6 {[%emt 0:00:00]} 3. Nf3 {[%emt 0:00:00]} Bg7 {[%emt 0:00:00]} 4. g3 {[%emt 0:00:00]} d5 {[%emt 0:00:00]} 5. cxd5 {[%emt 0:00:05]} Nxd5 {[%emt 0:00:00]} 6. Bg2 {[%emt 0:00:12]} Nb6 {[%emt 0:00:00]} 7. O-O {[%emt 0:00:59]} O-O {[%emt 0:00:06]} 8. Nc3 {[%emt 0:00:21]} Nc6 {[%emt 0:00:31]} 9. e3 {[%emt 0:03:19]} Re8 {[%emt 0:01:19]} 10. Qe2 {[%emt 0:04:19]} e5 {[%emt 0:03:15]} 11. dxe5 {[%emt 0:00:45]} Nxe5 {[%emt 0:00:28]} 12. Nxe5 {[%emt 0:00:32]} Bxe5 {[%emt 0:00:23]} 13. Rd1 {[%emt 0:00:38]} Qe7 {[%emt 0:00:52]} 14. f4 {[%emt 0:02:45]} Bg7 {[%emt 0:00:48]} 15. e4 {[%emt 0:00:31]} Be6 {[%emt 0:03:29]} 16. Be3 {[%emt 0:02:49]} Nc4 {[%emt 0:13:38]} 17. Bd4 {[%emt 0:04:01]} Bxd4+ {[%emt 0:02:29]} 18. Rxd4 {[%emt 0:00:16]} Qc5 {[%emt 0:01:09]} 19. Rad1 {[%emt 0:00:48]} Nb6 {[%emt 0:10:50]} 20. Kh1 {[%emt 0:03:30]} c6 {[%emt 0:01:06]} 21. e5 {[%emt 0:03:32]} f5 {[%emt 0:03:48]} 22. g4 {[%emt 0:11:11]} Qe7 {[%emt 0:03:31]} 23. Bh3 {[%emt 0:09:39]} Rf8 {[%emt 0:03:49]} 24. gxf5 {[%emt 0:02:26]} Bxf5 {[%emt 0:00:11]} 25. Bxf5 {[%emt 0:00:07]} Rxf5 {[%emt 0:00:33]} 26. Qg4 {[%emt 0:01:33]} Raf8 {[%emt 0:01:46]} 27. b4 {[%emt 0:07:07]} Kh8 {[%emt 0:06:07]} 28. a4 {[%emt 0:06:30]} Qf7 {[%emt 0:05:05]} 29. a5 {[%emt 0:05:56]} Nd5 {[%emt 0:01:51]} 30. Nxd5 {[%emt 0:01:04]} cxd5 {[%emt 0:00:05]} 31. Rxd5 {[%emt 0:01:59]} Rxf4 {[%emt 0:00:07]} 32. Qh3 {[%emt 0:00:09]} Rf3 {[%emt 0:00:51]} 33. Qg2 {[%emt 0:01:26]} Rf2 {[%emt 0:01:19] normal} 34. Qh3 {[%emt 0:00:39] normal} 1/2-1/2